bitfinex/quotes_ETHUSD_20250220
["timestamp","ask_amount","ask_price","bid_price","bid_amount"]
[1740041940139,9.72418,2738.1,2737.6,5.882857]
[1740041940449,9.72418,2738.1,2737.7,3.91269]
[1740041942654,9.72418,2738.1,2737.7,3.9127]
[1740041942946,6.072,2738.1,2737.7,3.9127]
[1740041944651,6.072,2738.1,2737.7,3.91262]
[1740041945157,6.072,2738.1,2737.8,3.65252]
[1740041946734,6.072,2738.1,2737.7,7.56524]
[1740041947443,6.072,2738.1,2737.8,3.65249]
[1740041953563,6.072,2738.1,2737.7,0.26]
[1740041953722,6.072,2738.1,2737.7,3.91263]
[1740041953922,9.72424,2738.1,2737.7,0.26]
[1740041954126,10.696637,2738.1,2737.7,0.26]
[1740041955461,4.9844,2737.7,2737.6,8.3062]
[1740041955631,6.5717,2737.7,2737.6,8.5662]
[1740041956474,10.2244,2737.7,2737.6,8.5662]
[1740041957789,6.5717,2737.7,2737.6,8.5662]
[1740041960966,10.2244,2737.7,2737.6,8.5662]
[1740041962172,10.2244,2737.7,2737.6,0.0992]
[1740041962473,10.2244,2737.7,2737.6,0.3592]
[1740041962837,11.74541677,2737.7,2737.6,0.0992]
[1740041963170,11.74541677,2737.7,2737.6,0.3592]
[1740041963671,13.07854446,2737.7,2737.6,0.3592]
[1740041964471,13.07854446,2737.7,2737.6,0.0992]
[1740041964675,13.08604446,2737.7,2737.6,0.0992]
[1740041970195,14.41917215,2737.7,2737.6,0.0992]
[1740041971088,13.08604446,2737.7,2737.6,0.0992]
[1740041971268,14.41917215,2737.7,2737.6,0.0992]
[1740041971978,13.08604446,2737.7,2737.6,0.0992]
[1740041974882,14.41917215,2737.7,2737.6,0.0992]
[1740041977289,13.08604446,2737.7,2737.6,0.0992]
[1740041977987,11.75291677,2737.7,2737.6,0.0992]
[1740041978191,9.6819,2737.7,2737.6,0.0992]
[1740041978693,9.4502,2737.7,2737.6,0.0992]
[1740041981503,5.79,2737.7,2737.6,0.0992]
[1740041982702,9.4427,2737.7,2737.6,0.0992]
[1740041986094,9.4502,2737.7,2737.6,0.0992]
[1740041987213,5.79,2737.7,2737.6,0.0992]
[1740041987596,9.4427,2737.7,2737.6,0.0992]
[1740041990720,5.79,2737.7,2737.6,0.0992]
[1740041992425,9.4427,2737.7,2737.6,0.0992]
[1740041997308,11.75967377,2737.7,2737.6,0.0992]
[1740041999825,10.2361,2737.7,2737.6,0.0992]
[1740042000431,5.24,2737.7,2737.6,4.56063]
[1740042000721,5.24,2737.7,2737.6,0.9078]
[1740042001026,5.24,2737.7,2737.6,4.56063]
[1740042001425,5.24,2738.0,2737.7,4.47757]
[1740042001625,5.24,2738.0,2737.8,0.457677]
[1740042002624,0.55,2737.9,2737.7,0.8249]
[1740042002830,4.98580769,2737.8,2737.6,0.0992]
[1740042003053,4.20268,2737.8,2737.7,0.26]
[1740042003428,0.55,2737.8,2737.7,0.26]
[1740042004462,5.24,2738.0,2737.7,1.0778]
[1740042004646,5.24,2738.0,2737.7,1.926071]
[1740042006557,5.24,2738.0,2737.7,1.0778]
[1740042006759,5.24,2738.0,2737.7,4.73048]
[1740042006942,5.24,2738.0,2737.7,1.0778]
[1740042008161,8.8923,2738.0,2737.7,0.8178]
[1740042008368,8.8923,2738.0,2737.8,0.26]
[1740042008664,8.8923,2738.0,2737.6,0.0992]
[1740042008836,3.65253,2737.9,2737.6,0.0992]
[1740042009042,3.65253,2737.9,2737.7,0.26]
[1740042009447,3.65256,2737.8,2737.7,0.26]
[1740042009761,3.6527,2737.7,2737.6,0.0992]
[1740042009963,2.12702769,2737.8,2737.6,0.3592]
[1740042010168,3.6525,2737.9,2737.6,0.3592]
[1740042010468,8.89238,2738.0,2737.6,0.3592]
[1740042010969,5.24,2738.0,2737.6,0.3592]
[1740042011272,5.24,2738.0,2737.7,0.7582]
[1740042013875,8.89241,2738.0,2737.7,0.7582]
[1740042014057,3.65247,2737.9,2737.6,0.3592]
[1740042014262,4.44647,2737.9,2737.6,0.3592]
[1740042014972,3.65257,2737.8,2737.6,0.3592]
[1740042015841,3.6527,2737.7,2737.6,0.0992]
[1740042016072,3.6527,2737.7,2737.6,0.3592]
[1740042017373,3.6527,2737.7,2737.6,0.0992]
[1740042017581,4.462617,2737.7,2737.6,0.3592]
[1740042017959,9.702617,2737.7,2737.6,0.3592]
[1740042018464,9.702617,2737.7,2737.6,0.0992]
[1740042018663,9.702617,2737.7,2737.6,0.3592]
[1740042019166,6.049917,2737.7,2737.6,0.3592]
[1740042019362,5.24,2737.7,2737.6,0.3592]
[1740042020693,8.8927,2737.7,2737.6,0.3592]
[1740042023311,5.24,2737.7,2737.6,0.3592]
[1740042023897,8.89257,2737.8,2737.6,0.3592]
[1740042024696,5.24,2737.8,2737.6,4.01203]
[1740042024894,5.24,2737.8,2737.7,0.8199]
[1740042026810,5.24,2737.8,2737.7,4.955799]
[1740042027609,5.24,2737.8,2737.7,4.4726]
[1740042027806,5.24,2737.8,2737.7,0.8199]
[1740042028708,5.24,2737.8,2737.7,4.4726]
[1740042029991,5.24,2738.1,2737.7,4.4726]
[1740042030908,5.24,2738.1,2737.7,0.8199]
[1740042031898,8.89224,2738.1,2737.7,0.8199]
[1740042032113,3.65254,2737.9,2737.6,0.0992]
[1740042032320,3.65254,2737.9,2737.7,0.26]
[1740042032694,3.65256,2737.8,2737.7,0.26]
[1740042033335,4.21006,2737.8,2737.7,0.26]
[1740042033709,5.0003,2737.7,2737.6,0.0992]
[1740042033891,5.865586,2737.7,2737.6,0.3592]
[1740042034737,5.865586,2737.7,2737.6,0.0992]
[1740042035834,11.105586,2737.7,2737.6,0.0992]
[1740042048868,12.44026267,2737.7,2737.6,0.0992]
[1740042049989,11.105586,2737.7,2737.6,0.0992]
[1740042050967,10.315486,2737.7,2737.6,0.0992]
[1740042051172,5.24,2737.7,2737.6,0.0992]
[1740042051350,5.24,2737.8,2737.6,0.0992]
[1740042058355,5.24,2737.8,2737.7,0.7905]
[1740042060988,8.89256,2737.8,2737.7,0.7905]
[1740042061277,4.2102,2737.7,2737.6,0.0992]
[1740042061457,5.96123,2737.7,2737.6,0.3592]
[1740042062246,5.96123,2737.7,2737.6,0.0992]
[1740042062648,11.20123,2737.7,2737.6,0.0992]
[1740042064714,11.95473,2737.7,2737.6,0.0992]
[1740042066119,11.20123,2737.7,2737.6,0.0992]
[1740042066321,9.4502,2737.7,2737.6,0.0992]
[1740042066491,5.2475,2737.7,2737.6,0.0992]
[1740042066699,5.24,2737.7,2737.6,0.0992]
[1740042068798,8.8927,2737.7,2737.6,0.0992]
[1740042069117,5.24,2737.7,2737.6,0.0992]
[1740042069684,8.8927,2737.7,2737.6,0.0992]
[1740042070380,5.24,2737.7,2737.6,0.0992]
[1740042070599,8.8927,2737.7,2737.6,0.0992]
[1740042071536,5.24,2737.7,2737.6,0.0992]
[1740042071904,9.4502,2737.7,2737.6,0.3592]
[1740042072130,8.9002,2737.7,2737.6,0.3592]
[1740042072436,5.24,2737.7,2737.6,0.3592]
[1740042081568,8.8927,2737.7,2737.6,0.3592]
[1740042082146,5.24,2737.7,2737.6,0.3592]
[1740042082538,8.9002,2737.7,2737.6,0.3592]
[1740042082773,9.723,2737.7,2737.6,0.3592]
[1740042082937,11.060557,2737.7,2737.6,0.3592]
[1740042083848,9.72080834,2737.7,2737.6,0.3592]
[1740042084246,9.72080834,2737.7,2737.6,0.0992]
[1740042084447,9.72080834,2737.7,2737.6,0.3592]
[1740042084838,5.24530834,2737.7,2737.6,0.3592]
[1740042090179,5.23780834,2737.7,2737.6,0.3592]
[1740042090384,5.23780834,2737.7,2737.6,1.553623]
[1740042091182,5.23780834,2737.7,2737.6,5.206453]
[1740042095065,5.23780834,2737.7,2737.6,1.553623]
[1740042095678,5.23780834,2737.7,2737.6,5.206453]
[1740042107083,5.23780834,2738.2,2737.6,1.553623]
[1740042107292,5.23780834,2738.2,2737.7,3.65267]
[1740042107293,8.88989834,2738.2,2737.7,3.65267]
[1740042107999,8.88989834,2738.2,2737.6,4.80522]
[1740042108000,3.65228,2738.1,2737.6,4.80522]
[1740042108432,3.65228,2738.1,2737.6,1.1524]
[1740042108746,0.7514,2737.9,2737.6,0.3592]
[1740042109350,0.7514,2737.9,2737.6,4.01193]
[1740042111429,0.7514,2737.9,2737.6,0.3592]
[1740042112209,0.7514,2737.9,2737.7,0.26]
[1740042112210,4.40385,2737.9,2737.7,0.26]
[1740042112406,0.440385,2737.8,2737.7,0.26]
[1740042112793,4.092945,2737.8,2737.7,0.26]
[1740042113128,9.33075334,2737.8,2737.7,0.26]
[1740042114034,5.0165,2737.7,2737.6,0.0992]
[1740042114201,6.5846311,2737.7,2737.6,0.3592]
[1740042114392,11.82243944,2737.7,2737.6,0.0992]
[1740042117526,14.82243944,2737.7,2737.6,0.0992]
[1740042128609,0.0075,2736.7,2736.5,0.8037]
[1740042128811,0.0075,2736.5,2736.4,2.81454945]
[1740042129110,4.2118,2736.5,2736.4,2.55454945]
[1740042129326,3.66193,2736.4,2736.3,0.26]
[1740042130041,3.6548,2736.2,2735.7,0.7592]
[1740042130207,5.23780834,2736.1,2735.8,0.26]
[1740042130832,5.23780834,2736.1,2735.8,3.91521]
[1740042131714,5.23780834,2736.1,2735.8,0.26]
[1740042131915,5.23780834,2736.1,2735.9,3.65507]
[1740042132446,5.23780834,2736.1,2735.9,3.655]
[1740042132616,5.23780834,2736.1,2736.0,4.40787]
[1740042133848,5.23780834,2736.1,2736.0,0.7529]
[1740042134053,5.23780834,2736.1,2735.8,1.086]
[1740042134353,0.0075,2735.9,2735.4,3.65575]
[1740042134527,0.0075,2735.9,2735.4,7.31144]
[1740042134735,0.0075,2735.9,2735.4,3.65569]
[1740042136046,8.89264834,2736.1,2735.5,3.65556]
[1740042137056,3.6625,2736.0,2735.5,3.65556]
[1740042138275,3.6625,2736.0,2735.4,3.65577]
[1740042138974,3.6625,2736.0,2735.5,3.65562]
[1740042139743,5.23780834,2735.9,2735.4,3.65568]
[1740042139944,5.23780834,2735.9,2735.4,7.31136]
[1740042140159,5.23780834,2735.9,2735.4,3.65568]
[1740042140360,5.23780834,2735.9,2735.5,3.65563]
[1740042141070,5.23780834,2735.9,2735.4,3.65568]
[1740042142582,5.23780834,2735.9,2735.5,3.65562]
[1740042143376,5.23780834,2735.9,2735.6,3.65542]
[1740042153695,5.23780834,2735.9,2735.4,3.65574]
[1740042153893,5.23780834,2735.9,2735.5,3.91562]
[1740042155090,5.23780834,2735.9,2735.6,3.65541]
[1740042155593,5.23780834,2735.9,2735.5,0.26]
[1740042155799,5.23780834,2735.9,2735.5,3.91556]
[1740042156293,5.23780834,2735.9,2735.6,3.65542]
[1740042159103,5.23780834,2735.9,2735.7,0.7951]
[1740042159674,5.23780834,2735.9,2735.6,3.65542]
[1740042163511,0.0075,2735.4,2735.1,8.214]
[1740042163808,0.789,2735.3,2735.2,0.26]
[1740042164981,5.24530834,2735.4,2735.2,0.26]
[1740042165378,5.23780834,2735.4,2735.2,0.26]
[1740042165601,5.23780834,2735.4,2735.3,3.6559]
[1740042165907,5.23780834,2735.4,2735.3,4.4196]
[1740042166276,5.23780834,2735.4,2735.3,6.074562]
[1740042168106,5.23780834,2735.4,2735.3,6.334562]
[1740042169627,5.24530834,2735.9,2735.4,3.65564]
[1740042170606,5.24530834,2735.9,2735.3,1.0237]
[1740042170813,5.24530834,2735.9,2735.3,4.67956]
[1740042170998,5.24530834,2735.9,2735.5,3.65563]
[1740042171921,8.90041834,2735.9,2735.5,3.65563]
[1740042173228,5.24530834,2735.9,2735.5,3.65563]
[1740042174204,5.24530834,2735.9,2735.6,3.65548]
[1740042174909,5.24530834,2735.9,2735.4,3.65575]
[1740042175092,5.24530834,2735.9,2735.5,3.65563]
[1740042176326,5.24530834,2735.9,2735.6,3.65548]
[1740042177095,5.23780834,2735.9,2735.8,3.65523]
[1740042177803,5.23780834,2735.9,2735.7,4.42263]
[1740042178232,5.23780834,2735.9,2735.7,8.07796]
[1740042178424,5.23780834,2735.9,2735.7,4.42263]
[1740042180631,5.23780834,2735.9,2735.6,3.6555]
[1740042181026,5.23780834,2735.9,2735.6,3.65548]
[1740042181400,5.23780834,2735.9,2735.5,4.46512]
[1740042181596,5.23780834,2735.9,2735.5,3.65562]
[1740042181801,0.7878,2735.8,2735.4,3.65569]
[1740042182021,3.66293,2735.7,2735.4,0.26]
[1740042182330,0.0075,2735.7,2735.4,0.26]
[1740042182700,0.0075,2735.7,2735.4,3.91574]
[1740042182895,0.7878,2735.8,2735.4,3.91574]
[1740042183100,0.7878,2735.8,2735.5,3.65552]
[1740042184341,5.23780834,2735.9,2735.5,3.65555]
[1740042184799,5.23780834,2735.9,2735.4,4.74494]
[1740042185000,8.89291834,2735.9,2735.4,4.74494]
[1740042185199,6.56840917,2735.9,2735.7,3.65528]
[1740042185423,6.56840917,2735.9,2735.6,3.6555]
[1740042185424,5.23780834,2735.9,2735.6,3.6555]
[1740042185608,5.23780834,2735.9,2735.5,3.65558]
[1740042185813,5.23780834,2735.9,2735.5,3.65556]
[1740042186013,5.23780834,2735.9,2735.5,3.65555]
[1740042187212,5.23780834,2735.9,2735.6,3.65549]
[1740042187813,5.23780834,2735.9,2735.5,3.65563]
[1740042189424,5.23780834,2735.9,2735.5,3.65553]
[1740042190442,10.22351317,2735.9,2735.5,3.65553]
[1740042190604,10.22351317,2735.9,2735.4,4.74494]
[1740042190942,3.66274,2735.8,2735.4,3.91574]
[1740042191157,0.8086,2735.7,2735.4,0.26]
[1740042191602,0.8086,2735.7,2735.4,3.91575]
[1740042192007,0.8086,2735.7,2735.5,3.65558]
[1740042192207,0.8086,2735.7,2735.4,3.91575]
[1740042194424,0.0075,2735.6,2735.1,3.65614]
[1740042194637,8.90082834,2735.6,2735.2,0.26]
[1740042194815,0.0075,2735.4,2735.2,0.26]
[1740042195740,0.0075,2735.4,2735.2,3.91595]
[1740042197146,0.0075,2735.4,2735.0,3.65618]
[1740042197348,8.90109834,2735.4,2734.9,8.215]
[1740042197528,0.0075,2735.2,2734.9,8.215]
[1740042197725,4.21361,2735.2,2735.0,0.26]
[1740042198326,0.7848,2735.1,2735.0,0.26]
[1740042199358,0.0075,2735.0,2734.9,8.215]
[1740042199555,5.24530834,2735.0,2734.9,8.475]
[1740042200713,5.23780834,2735.0,2734.9,12.13144]
[1740042200920,5.23780834,2735.0,2734.9,13.710253]
[1740042201114,5.23780834,2735.0,2734.9,14.538353]
[1740042201342,5.23780834,2735.0,2734.9,12.95954]
[1740042201850,5.23780834,2735.0,2734.9,12.90954]
[1740042202670,5.23780834,2735.0,2734.9,12.08144]
[1740042205263,5.23780834,2735.3,2735.0,3.65624]
[1740042205567,5.23780834,2735.3,2734.9,8.425]
[1740042205871,5.23780834,2735.3,2735.0,3.65618]
[1740042206429,5.23780834,2735.3,2735.1,3.65615]
[1740042206628,5.23780834,2735.3,2735.0,3.65618]
[1740042207023,0.7816,2735.2,2734.8,3.65649]
[1740042207281,0.7816,2735.2,2734.9,0.26]
[1740042208160,0.7816,2735.2,2735.0,0.26]
[1740042208896,0.0075,2735.1,2735.0,0.26]
[1740042215220,0.0075,2735.2,2735.0,0.26]
[1740042217075,5.24530834,2735.2,2735.0,0.26]
[1740042217276,6.21248117,2735.2,2735.0,0.26]
[1740042219123,6.21248117,2735.2,2734.9,3.65642]
[1740042219272,6.21248117,2735.2,2735.1,0.26]
[1740042221207,5.24530834,2735.2,2735.1,0.26]
[1740042222516,5.24530834,2735.2,2734.9,3.65634]
[1740042222725,6.06540834,2735.2,2735.0,0.26]
[1740042224198,6.06540834,2735.2,2735.0,3.91629]
[1740042224401,5.24530834,2735.2,2735.0,3.91629]
[1740042225644,5.24530834,2735.2,2735.0,0.26]
[1740042226700,5.24530834,2735.2,2735.0,0.4096]
[1740042241172,9.87304317,2735.2,2735.0,0.4096]
[1740042241478,9.87297317,2735.2,2735.0,0.4096]
[1740042242436,6.21688317,2735.2,2735.0,0.4096]
[1740042242639,6.20938317,2735.2,2735.0,0.4096]
[1740042242862,0.0075,2735.1,2735.0,0.4096]
[1740042246374,3.66367,2735.1,2735.0,0.4096]
[1740042248451,4.91941083,2735.1,2735.0,0.4096]
[1740042248975,1.26324083,2735.1,2735.0,0.4096]
[1740042249281,0.0075,2735.1,2735.0,0.4096]
[1740042252653,5.24530834,2735.1,2735.0,0.4096]
[1740042256578,5.24530834,2735.1,2735.0,1.74627942]
[1740042256763,5.24530834,2735.1,2735.0,0.4096]
[1740042256961,8.90147834,2735.1,2735.0,0.4096]
[1740042257174,6.68545617,2735.1,2735.0,0.4096]
[1740042258281,6.68545617,2735.1,2735.0,0.1496]
[1740042258442,6.68545617,2735.1,2735.0,0.4096]
[1740042260358,11.11642617,2735.1,2735.0,0.4096]
[1740042261740,11.11642617,2735.1,2735.0,0.1496]
[1740042266802,7.46025617,2735.1,2735.0,0.1496]
[1740042266953,5.24530834,2735.1,2735.0,0.1496]
[1740042267681,5.24530834,2735.1,2735.0,5.14257942]
[1740042267850,5.24530834,2735.1,2735.0,0.1496]
[1740042269593,5.23780834,2735.1,2735.0,1.48627942]
[1740042269764,5.23780834,2735.1,2735.0,5.14257942]
[1740042270470,5.23780834,2735.1,2735.0,6.12467136]
[1740042270665,5.23780834,2735.1,2735.0,5.14257942]
[1740042270892,5.23780834,2735.1,2735.0,3.8059]
[1740042271095,5.24530834,2735.1,2735.0,0.1496]
[1740042272400,5.23780834,2735.1,2735.0,3.8059]
[1740042272767,5.23780834,2735.1,2735.0,4.5814]
[1740042275361,5.23780834,2735.1,2735.0,5.56484394]
[1740042276462,0.0075,2735.4,2735.2,3.65597]
[1740042276684,0.0075,2735.4,2735.2,4.99264942]
[1740042277475,5.23780834,2735.5,2735.3,3.6559]
[1740042277820,5.23780834,2735.5,2735.4,5.80924942]
[1740042278108,5.23780834,2735.5,2735.4,6.8894323]
[1740042278313,5.23780834,2735.5,2735.2,4.99259942]
[1740042278482,5.23780834,2735.5,2735.2,4.99265942]
[1740042279008,5.23780834,2735.5,2735.2,1.33667942]
[1740042280011,5.23780834,2735.5,2735.2,4.99269942]
[1740042280206,5.23780834,2735.5,2735.3,3.65585]
[1740042281411,5.23780834,2735.5,2735.3,3.6559]
[1740042281768,5.23780834,2735.5,2735.4,1.33667942]
[1740042282108,5.24530834,2735.5,2735.3,3.6559]
[1740042282272,0.0075,2735.4,2735.2,4.99265942]
[1740042283173,0.0075,2735.4,2735.3,3.6559]
[1740042283471,0.0075,2735.4,2735.2,4.99265942]
[1740042283672,0.0075,2735.4,2735.2,5.61165726]
[1740042283894,0.0075,2735.4,2735.3,3.6559]
[1740042287416,0.0075,2735.4,2735.2,4.99267942]
[1740042287624,0.0075,2735.4,2735.2,1.33667942]
[1740042288116,0.7765,2735.4,2735.1,0.28131898]
[1740042288289,9.67010834,2735.4,2735.2,0.26]
[1740042288492,7.34688417,2735.4,2735.2,0.26]
[1740042290236,11.00274417,2735.4,2735.0,1.48627942]
[1740042290390,0.7787,2735.1,2735.0,0.1496]
[1740042290589,4.21367,2735.1,2735.0,0.1496]
[1740042290791,4.98487,2735.1,2735.0,0.4096]
[1740042291124,5.848961,2735.1,2735.0,0.4096]
[1740042293444,11.08676934,2735.1,2735.0,0.4096]
[1740042293740,15.42344876,2735.1,2735.0,0.1496]
[1740042294815,15.80843077,2735.1,2735.0,0.1496]
[1740042296593,17.23098816,2735.1,2735.0,0.1496]
[1740042300543,16.84600615,2735.1,2735.0,0.1496]
[1740042300898,13.53676934,2735.1,2735.0,0.1496]
[1740042301825,14.08676934,2735.1,2735.0,0.1496]
[1740042309466,6.65939934,2735.1,2735.0,0.1496]
[1740042309636,5.24530834,2735.1,2735.0,0.1496]
[1740042309840,8.90147834,2735.1,2735.0,0.1496]
[1740042310042,9.45147834,2735.1,2735.0,0.1496]
[1740042310559,10.23097834,2735.1,2735.0,0.1496]
[1740042310764,11.61969317,2735.1,2735.0,0.1496]
[1740042313439,10.84019317,2735.1,2735.0,0.1496]
[1740042314741,11.64009317,2735.1,2735.0,0.1496]
[1740042318161,14.64009317,2735.1,2735.0,0.1496]
[1740042319171,14.74009317,2735.1,2735.0,0.1496]
[1740042320771,4.21474,2734.3,2734.2,2.11639847]
[1740042320975,9.45254834,2734.3,2734.2,2.11639847]
[1740042327449,5.24530834,2734.3,2734.2,2.11639847]
[1740042328750,8.90254834,2734.3,2734.2,2.11639847]
[1740042329763,5.24530834,2734.3,2734.2,2.11639847]
[1740042331022,8.90254834,2734.3,2734.2,2.11639847]
[1740042331224,10.15851417,2734.3,2734.2,2.11639847]
[1740042332529,0.0075,2734.2,2734.0,0.26]
[1740042332754,3.66501,2734.1,2734.0,0.26]
[1740042333789,0.0075,2734.1,2734.0,0.26]
[1740042335666,3.66501,2734.1,2734.0,0.26]
[1740042335866,8.90281834,2734.1,2734.0,0.26]
[1740042338194,5.24530834,2734.1,2734.0,0.26]
[1740042338754,8.90281834,2734.1,2734.0,0.26]
[1740042338983,5.24530834,2734.1,2734.0,0.26]
[1740042345598,8.90281834,2734.1,2734.0,0.26]
[1740042346663,3.66535,2733.9,2733.8,0.26]
[1740042347891,0.0075,2733.9,2733.8,0.26]
[1740042348066,3.66527,2733.9,2733.8,0.26]
[1740042348467,0.0075,2733.9,2733.8,0.26]
[1740042348701,3.65765,2734.0,2733.6,0.7697]
[1740042348928,5.24530834,2733.9,2733.7,0.26]
[1740042349693,5.24530834,2733.9,2733.8,0.7697]
[1740042353492,5.24530834,2733.9,2733.8,1.0297]
[1740042356718,5.24530834,2733.9,2733.8,4.68761]
[1740042356890,5.24530834,2733.9,2733.8,1.0297]
[1740042360204,5.24530834,2733.9,2733.8,2.36754511]
[1740042360407,5.23780834,2733.9,2733.8,6.52041138]
[1740042360612,5.23780834,2733.9,2733.8,6.57051138]
[1740042362096,5.23780834,2733.9,2733.8,2.41764511]
[1740042362291,5.23780834,2733.9,2733.8,6.07555511]
[1740042363435,5.24530834,2733.9,2733.8,2.41764511]
[1740042363639,5.24530834,2733.9,2733.8,6.07555511]
[1740042370801,5.23780834,2733.9,2733.8,6.07555511]
[1740042370963,5.23780834,2733.9,2733.8,7.18269813]
[1740042371506,0.0075,2734.0,2733.9,3.65776]
[1740042371655,0.0075,2734.0,2733.9,4.99560511]
[1740042372301,0.1488,2734.1,2734.0,3.65764]
[1740042372464,0.1488,2734.1,2734.0,4.44944]
[1740042372659,0.1488,2734.1,2734.0,5.53065881]
[1740042380426,0.1488,2734.1,2734.0,5.80306693]
[1740042386721,0.1488,2734.1,2734.0,14.02206693]
[1740042387590,0.1488,2734.1,2734.0,17.02206693]
[1740042387828,0.1488,2734.1,2734.0,18.35991204]
[1740042388088,0.1488,2734.1,2734.0,17.02206693]
[1740042388742,5.24530834,2734.9,2734.0,17.02206693]
[1740042388743,5.24530834,2734.9,2734.8,3.65657]
[1740042388892,0.7861,2735.2,2734.8,1.59784511]
[1740042389091,0.7861,2735.2,2735.1,1.33784511]
[1740042389327,0.0075,2735.1,2734.9,4.99424511]
[1740042390040,0.0075,2735.1,2734.9,1.33784511]
[1740042390713,0.0075,2735.1,2735.0,0.26]
[1740042391323,3.66367,2735.1,2735.0,0.26]
[1740042391924,0.0075,2735.1,2735.0,0.26]
[1740042392315,5.24530834,2735.1,2735.0,0.26]
[1740042394527,5.24530834,2735.1,2734.7,4.99454511]
[1740042394528,0.0075,2734.9,2734.7,1.33784511]
[1740042394854,0.0075,2734.9,2734.8,0.26]
[1740042398260,5.24530834,2734.9,2734.5,4.99474511]
[1740042398568,5.24530834,2734.9,2734.8,0.26]
[1740042405575,5.24530834,2734.9,2734.6,3.65683]
[1740042405869,5.24530834,2734.9,2734.7,0.26]
[1740042412169,5.24530834,2734.9,2734.7,5.25454511]
[1740042413254,5.24530834,2734.9,2734.8,3.65657]
[1740042413483,5.23780834,2734.9,2734.8,4.43247]
[1740042415992,0.0075,2735.1,2734.8,4.43247]
[1740042417890,0.0075,2735.1,2734.8,0.7759]
[1740042418666,0.0075,2735.1,2734.8,4.43245]
[1740042418893,0.0075,2735.1,2734.9,3.65643]
[1740042420908,0.0075,2735.1,2734.8,4.43247]
[1740042421790,0.0075,2735.1,2734.9,3.65637]
[1740042422002,0.0075,2735.1,2735.0,3.6563]
[1740042422169,0.0075,2735.1,2734.9,3.65637]
[1740042423225,0.0075,2735.1,2734.9,6.06027367]
[1740042423382,5.23780834,2735.2,2735.1,4.42447]
[1740042423592,5.23780834,2735.2,2735.1,5.76231511]
[1740042426441,0.7662,2735.9,2735.2,4.46999]
[1740042426707,6.00630834,2736.2,2735.7,4.99312511]
[1740042426891,6.00630834,2736.2,2735.8,0.26]
[1740042427097,0.0075,2736.1,2735.8,3.91515]
[1740042427600,0.0075,2736.1,2736.0,3.65497]
[1740042427770,0.0075,2736.1,2735.9,4.99291511]
[1740042427966,0.0075,2736.1,2735.8,0.26]
[1740042428878,3.65524,2735.8,2735.4,0.8134]
[1740042429080,0.0075,2735.8,2735.5,0.26]
[1740042429279,0.0075,2735.6,2735.2,3.65595]
[1740042429494,4.45627,2735.6,2735.3,0.26]
[1740042429671,0.8007,2735.6,2735.3,0.26]
[1740042430382,4.45632,2735.6,2735.3,0.26]
[1740042430691,0.8007,2735.6,2735.3,0.26]
[1740042432505,4.45625,2735.6,2735.3,0.26]
[1740042433407,0.0075,2735.4,2735.1,0.8134]
[1740042433569,0.0075,2735.5,2735.2,0.26]
[1740042433916,0.0075,2735.3,2735.2,0.26]
[1740042434411,3.6634,2735.3,2735.2,0.26]
[1740042434569,4.4159,2735.3,2735.2,0.26]
[1740042435226,5.74684883,2735.3,2735.2,0.26]
[1740042436783,5.74684883,2735.3,2734.5,0.7992]
[1740042436784,0.7793,2734.8,2734.5,3.65696]
[1740042436986,0.7793,2734.8,2734.6,0.26]
[1740042437309,4.43587,2734.8,2734.6,1.24138451]
[1740042437506,0.7793,2734.8,2734.6,0.26]
[1740042438309,0.0075,2734.9,2734.6,0.26]
[1740042438880,0.0075,2734.9,2734.7,3.6567]
[1740042440419,5.23780834,2735.2,2734.7,0.7895]
[1740042440579,5.23780834,2735.2,2734.8,3.65651]
[1740042440790,5.23780834,2735.2,2734.8,7.31295]
[1740042441200,0.0075,2735.1,2734.9,3.6564]
[1740042443008,0.0075,2735.1,2734.7,7.20338168]
[1740042443209,0.8299,2735.0,2734.6,3.91674]
[1740042443412,0.8299,2735.0,2734.6,8.17167009]
[1740042443773,0.8299,2735.0,2734.7,3.65668]
[1740042444914,0.8299,2735.0,2734.7,7.31331]
[1740042445118,0.0075,2735.1,2734.8,3.65655]
[1740042446075,0.0075,2735.1,2734.9,3.65641]
[1740042448212,0.0075,2735.1,2734.9,5.140714]
[1740042448589,0.0075,2735.1,2734.9,1.484304]
[1740042448783,0.0075,2735.1,2734.8,3.65654]
[1740042449401,0.0075,2735.1,2734.9,3.65643]
[1740042451417,0.0075,2735.1,2735.0,3.6563]
[1740042452314,5.23780834,2735.2,2735.0,3.6563]
[1740042452318,5.23780834,2735.2,2735.1,3.65617]
[1740042452779,5.24530834,2735.2,2735.1,3.65617]
[1740042453915,5.24530834,2735.2,2734.9,3.65635]
[1740042454140,5.24530834,2735.2,2734.8,3.65647]
[1740042454427,5.24530834,2735.2,2735.0,3.65628]
[1740042454919,5.24530834,2735.2,2735.0,3.65622]
[1740042456114,5.24530834,2735.2,2735.1,3.65617]
[1740042458006,5.24530834,2735.2,2734.9,4.74590217]
[1740042458342,5.24530834,2735.2,2734.9,1.08958217]
[1740042458343,0.0075,2735.1,2734.9,1.08958217]
[1740042458546,0.0075,2735.1,2734.8,3.6565]
[1740042458701,0.0075,2735.1,2734.7,0.8257]
[1740042458901,0.0075,2734.9,2734.8,0.26]
[1740042459618,0.0075,2734.9,2734.8,3.91657]
[1740042460734,6.02210834,2735.2,2734.9,3.65633]
[1740042463029,0.0075,2735.1,2734.8,3.91657]
[1740042463234,0.0075,2735.1,2734.8,8.10557401]
[1740042463433,0.0075,2735.1,2734.8,4.44900401]
[1740042463635,0.0075,2735.1,2734.9,3.65643]
[1740042466759,0.0075,2735.1,2734.8,4.44898401]
[1740042467155,0.0075,2735.1,2734.8,0.79251401]